bitfinex/quotes_SOLUSD_20250617
["timestamp","ask_amount","ask_price","bid_price","bid_amount"]
[1750189800545,1.0314464,150.46,150.4,0.14216157]
[1750189800747,1.0314464,150.46,150.43,13.92858235]
[1750189800951,1.0314464,150.46,150.41,6.64]
[1750189800952,13.92858235,150.45,150.41,6.64]
[1750189801254,13.92858235,150.42,150.41,6.64]
[1750189801453,13.92858235,150.42,150.35,12.9417]
[1750189801671,13.92858235,150.38,150.35,6.64]
[1750189801866,13.92858235,150.36,150.35,6.64]
[1750189802196,13.92858235,150.36,150.28,6.64]
[1750189802482,13.92858235,150.31,150.28,6.64]
[1750189802645,13.92858235,150.39,150.28,6.64]
[1750189802646,13.92858235,150.29,150.28,6.64]
[1750189802846,13.92858235,150.29,150.26,3.29376611]
[1750189803070,13.92858235,150.29,150.22,6.64]
[1750189803071,13.92858235,150.27,150.22,6.64]
[1750189803343,6.65291389,150.32,150.22,6.64]
[1750189803543,13.92858235,150.27,150.22,6.64]
[1750189803743,13.92858235,150.3,150.22,6.64]
[1750189803982,32.65291389,150.32,150.23,13.92858235]
[1750189804278,13.92858235,150.35,150.31,13.92858235]
[1750189804484,6.65026268,150.37,150.31,13.92858235]
[1750189804679,13.92858235,150.33,150.29,13.92858235]
[1750189804856,13.92858235,150.33,150.29,22.16247701]
[1750189804857,22.16247701,150.33,150.29,22.16247701]
[1750189805482,22.16247701,150.34,150.29,22.16247701]
[1750189805794,22.16247701,150.34,150.3,22.16247701]
[1750189805951,22.16247701,150.35,150.3,22.16247701]
[1750189806585,22.16247701,150.35,150.29,6.8]
[1750189806793,11.55690111,150.38,150.29,6.8]
[1750189806977,22.16247701,150.37,150.32,22.16247701]
[1750189807301,16.62145523,150.41,150.29,6.8]
[1750189807302,22.16247701,150.38,150.34,22.16247701]
[1750189807455,22.16247701,150.37,150.32,22.16247701]
[1750189807654,22.16247701,150.36,150.32,22.16247701]
[1750189808063,49.2697294,150.41,150.29,28.96247701]
[1750189808265,22.16247701,150.38,150.34,22.16247701]
[1750189808470,22.16247701,150.37,150.33,22.16247701]
[1750189808662,22.16247701,150.36,150.29,25.44964886]
[1750189808862,22.16247701,150.38,150.33,22.16247701]
[1750189809096,22.16247701,150.39,150.34,22.16247701]
[1750189809266,22.16247701,150.38,150.33,22.16247701]
[1750189809464,22.16247701,150.36,150.32,22.16247701]
[1750189810584,22.16247701,150.34,150.29,6.8]
[1750189810794,22.16247701,150.35,150.29,6.8]
[1750189811093,22.16247701,150.34,150.3,22.16247701]
[1750189812676,22.16247701,150.35,150.3,22.16247701]
[1750189812877,22.16247701,150.35,150.31,22.16247701]
[1750189813166,22.16247701,150.35,150.3,22.16247701]
[1750189813472,22.16247701,150.34,150.3,22.16247701]
[1750189813795,22.16247701,150.34,150.29,6.8]
[1750189813970,22.16247701,150.34,150.3,22.16247701]
[1750189814904,22.16247701,150.37,150.33,22.16247701]
[1750189815193,22.16247701,150.35,150.31,22.16247701]
[1750189816411,22.16247701,150.34,150.3,22.16247701]
[1750189816793,32.64942363,150.39,150.29,6.8]
[1750189816794,22.16247701,150.32,150.29,6.8]
[1750189816979,22.16247701,150.33,150.29,6.8]
[1750189817185,22.16247701,150.34,150.29,28.96247701]
[1750189817501,22.16247701,150.33,150.29,28.96247701]
[1750189817684,22.16247701,150.33,150.29,6.8]
[1750189817895,22.16247701,150.33,150.29,28.96247701]
[1750189818081,22.16247701,150.32,150.29,6.8]
[1750189819300,22.16247701,150.3,150.29,6.8]
[1750189819981,22.16247701,150.3,150.23,44.64964886]
[1750189819982,22.16247701,150.3,150.23,28.96247701]
[1750189820178,4.91357816,150.34,150.27,22.16247701]
[1750189820394,22.16247701,150.36,150.32,22.16247701]
[1750189820596,12.45990236,150.4,150.35,22.16247701]
[1750189820597,4.93532459,150.39,150.35,22.16247701]
[1750189820799,22.16247701,150.39,150.35,22.16247701]
[1750189821005,22.16247701,150.38,150.33,22.16247701]
[1750189821172,22.16247701,150.38,150.31,0.28432314]
[1750189821370,22.16247701,150.36,150.3,51.44964886]
[1750189821678,22.16247701,150.36,150.32,22.16247701]
[1750189822807,22.16247701,150.36,150.3,6.8]
[1750189822808,22.16247701,150.37,150.33,22.16247701]
[1750189822984,26.0,150.39,150.33,22.16247701]
[1750189823191,22.16247701,150.39,150.34,22.16247701]
[1750189823376,22.16247701,150.38,150.3,6.8]
[1750189823571,26.0,150.39,150.3,6.8]
[1750189823773,22.16247701,150.34,150.3,6.8]
[1750189824009,22.16247701,150.33,150.3,6.8]
[1750189824309,22.16247701,150.32,150.3,6.8]
[1750189824477,22.16247701,150.31,150.3,6.8]
[1750189824684,22.16247701,150.31,150.24,28.96247701]
[1750189824986,22.16247701,150.31,150.27,22.16247701]
[1750189825205,22.16247701,150.31,150.26,22.16247701]
[1750189825377,11.47775343,150.35,150.24,32.10536534]
[1750189825378,22.16247701,150.32,150.27,22.16247701]
[1750189826002,22.16247701,150.31,150.27,22.16247701]
[1750189826176,13.19419884,150.35,150.27,22.16247701]
[1750189826373,6.64893617,150.4,150.33,22.16247701]
[1750189826609,22.16247701,150.38,150.33,22.16247701]
[1750189827484,13.9383615,150.38,150.33,13.9383615]
[1750189827680,13.9383615,150.38,150.34,13.9383615]
[1750189827880,13.9383615,150.37,150.31,6.8]
[1750189828294,13.9383615,150.36,150.32,13.9383615]
[1750189828685,13.9383615,150.35,150.31,20.7383615]
[1750189828912,6.64893617,150.4,150.31,28.95818477]
[1750189829095,22.15818477,150.36,150.31,28.95818477]
[1750189829597,22.15818477,150.35,150.31,28.95818477]
[1750189830303,4.9343557,150.4,150.33,22.15818477]
[1750189830486,22.15818477,150.36,150.32,22.15818477]
[1750189830693,32.64849411,150.41,150.31,6.8]
[1750189830694,22.15818477,150.34,150.31,6.8]
[1750189831204,22.15818477,150.35,150.31,28.95818477]
[1750189831424,22.15818477,150.37,150.33,22.15818477]
[1750189831607,22.15818477,150.36,150.32,22.15818477]
[1750189831801,22.15818477,150.35,150.31,28.95818477]
[1750189831996,22.15818477,150.36,150.31,28.95818477]
[1750189832395,22.15818477,150.36,150.32,22.15818477]
[1750189832598,22.15818477,150.36,150.31,28.95818477]
[1750189833831,22.15818477,150.35,150.31,28.95818477]
[1750189834322,22.15818477,150.36,150.31,28.95818477]
[1750189834881,22.15818477,150.35,150.31,28.95818477]
[1750189835705,22.15818477,150.36,150.32,22.15818477]
[1750189836620,22.15818477,150.36,150.31,6.8]
[1750189836818,22.15818477,150.36,150.32,22.15818477]
[1750189836990,22.15818477,150.35,150.31,6.8]
[1750189837195,22.15818477,150.35,150.31,28.95818477]
[1750189837396,6.64948344,150.39,150.32,22.15818477]
[1750189837617,11.58383914,150.39,150.32,22.15818477]
[1750189837812,22.15818477,150.36,150.32,22.15818477]
[1750189838010,4.9343557,150.39,150.32,22.15818477]
[1750189838319,22.15818477,150.38,150.33,22.15818477]
[1750189838489,22.15818477,150.37,150.33,22.15818477]
[1750189839222,22.15818477,150.39,150.34,22.15818477]
[1750189839514,22.15818477,150.39,150.35,22.15818477]
[1750189839818,22.15818477,150.38,150.34,22.15818477]
[1750189840594,22.15818477,150.38,150.33,22.15818477]
[1750189840895,22.15818477,150.38,150.31,12.9178]
[1750189840896,22.15818477,150.34,150.31,6.8]
[1750189841219,22.15818477,150.35,150.31,6.8]
[1750189842019,22.15818477,150.35,150.31,28.95818477]
[1750189842217,27.09254047,150.38,150.34,22.15818477]
[1750189842418,4.9343557,150.37,150.34,22.15818477]
[1750189842602,4.9343557,150.37,150.33,22.15818477]
[1750189842803,27.09254047,150.37,150.31,6.8]
[1750189843005,22.15818477,150.35,150.31,28.95818477]
[1750189843199,22.15818477,150.35,150.31,6.8]
[1750189843411,27.09254047,150.36,150.31,28.95818477]
[1750189843618,22.15818477,150.37,150.32,22.15818477]
[1750189843811,27.12418023,150.38,150.33,22.15818477]
[1750189844006,27.12418023,150.37,150.33,22.15818477]
[1750189844206,22.15818477,150.37,150.32,22.15818477]
[1750189844420,22.15818477,150.34,150.31,6.8]
[1750189844610,22.15818477,150.36,150.31,28.95818477]
[1750189845827,22.15818477,150.36,150.32,22.15818477]
[1750189846324,22.15818477,150.37,150.32,22.15818477]
[1750189846520,4.97074859,150.36,150.32,22.15818477]
[1750189846720,22.15818477,150.37,150.32,22.15818477]
[1750189846928,22.15818477,150.36,150.32,22.15818477]
[1750189848935,6.64910604,150.4,150.32,13.94174156]
[1750189849125,4.97348903,150.39,150.32,13.94174156]
[1750189849321,13.94174156,150.36,150.31,20.74174156]
[1750189849625,18.91548478,150.35,150.31,20.74174156]
[1750189849804,13.94174156,150.35,150.31,6.8]
[1750189850005,13.94174156,150.34,150.31,6.8]
[1750189850625,13.94174156,150.35,150.31,20.74174156]
[1750189850829,12.76239476,150.39,150.33,13.94174156]
[1750189851007,13.94174156,150.37,150.33,13.94174156]
[1750189851207,4.97553726,150.36,150.32,13.94174156]
[1750189851409,4.97553726,150.35,150.32,13.94174156]
[1750189851627,13.94174156,150.36,150.31,6.8]
[1750189851810,4.97585453,150.35,150.31,20.74174156]
[1750189852126,13.94174156,150.36,150.31,20.74174156]
[1750189852326,4.97593332,150.35,150.31,20.74174156]
[1750189852536,13.94174156,150.36,150.31,20.74174156]
[1750189852836,4.97594155,150.35,150.31,20.74174156]
[1750189853149,13.94174156,150.36,150.31,20.74174156]
[1750189853804,13.94174156,150.36,150.32,13.94174156]
[1750189854009,6.6494924,150.39,150.32,13.94174156]
[1750189854206,13.94174156,150.36,150.32,13.94174156]
[1750189856244,13.94174156,150.36,150.31,20.74174156]
[1750189856712,13.94174156,150.36,150.32,13.94174156]
[1750189857424,4.97578817,150.35,150.32,13.94174156]
[1750189857739,13.94174156,150.36,150.32,13.94174156]
[1750189858243,13.94174156,150.37,150.32,13.94174156]
[1750189858425,4.97588116,150.36,150.32,13.94174156]
[1750189858750,13.94174156,150.37,150.32,13.94174156]
[1750189858951,4.97590926,150.36,150.32,13.94174156]
[1750189859117,6.64954115,150.39,150.32,13.94174156]
[1750189859320,13.94174156,150.37,150.32,13.94174156]
[1750189859625,13.94174156,150.35,150.31,20.74174156]
[1750189859828,4.97643026,150.34,150.31,20.74174156]
[1750189860135,13.94174156,150.36,150.32,13.94174156]
[1750189860339,4.97617795,150.35,150.31,20.74174156]
[1750189860546,13.94174156,150.35,150.31,20.74174156]
[1750189860926,13.94174156,150.33,150.29,13.94174156]
[1750189861117,13.94174156,150.37,150.32,13.94174156]
[1750189861320,13.94174156,150.35,150.3,13.94174156]
[1750189861520,13.94174156,150.33,150.27,38.8378]
[1750189861854,13.94174156,150.32,150.27,20.66174156]
[1750189862022,13.94174156,150.28,150.27,6.72]
[1750189862228,13.94174156,150.29,150.27,6.72]
[1750189862553,6.11290236,150.33,150.28,13.94174156]
[1750189862554,13.94174156,150.33,150.28,13.94174156]
[1750189862852,4.97602781,150.32,150.29,13.94174156]
[1750189863149,18.91776937,150.31,150.27,20.66174156]
[1750189863363,13.94174156,150.31,150.27,20.66174156]
[1750189863850,13.94174156,150.32,150.27,20.66174156]
[1750189864064,13.94174156,150.32,150.22,32.5466]
[1750189864065,13.94174156,150.28,150.22,32.5466]
[1750189864353,13.94174156,150.28,150.23,13.94174156]
[1750189864658,13.94174156,150.27,150.23,13.94174156]
[1750189864817,13.94174156,150.28,150.23,13.94174156]
[1750189865142,13.94174156,150.28,150.22,32.5466]
[1750189865363,4.97450483,150.31,150.27,13.94174156]
[1750189865529,4.97450483,150.32,150.28,13.94174156]
[1750189865729,13.94174156,150.32,150.28,13.94174156]
[1750189866028,8.2099022,150.34,150.22,32.97308471]
[1750189866234,4.97316577,150.33,150.22,32.5466]
[1750189866433,13.94174156,150.27,150.22,46.48834156]
[1750189866623,13.94174156,150.28,150.24,13.94174156]
[1750189866825,13.94174156,150.28,150.22,6.5466]
[1750189867052,13.94174156,150.28,150.23,13.94174156]
[1750189867251,13.94174156,150.3,150.25,13.94174156]
[1750189867430,4.97205667,150.29,150.25,13.94174156]
[1750189868731,13.94174156,150.29,150.25,13.94174156]
[1750189869351,18.91034683,150.3,150.25,13.94174156]
[1750189869537,13.94174156,150.29,150.25,13.94174156]
[1750189870150,13.94174156,150.27,150.23,13.94174156]
[1750189870352,13.94174156,150.27,150.22,20.48834156]
[1750189870556,13.94174156,150.26,150.21,32.72]
[1750189870761,4.96789272,150.31,150.23,13.94174156]
[1750189870965,13.94174156,150.28,150.24,13.94174156]
[1750189871534,4.96789272,150.31,150.24,13.94174156]
[1750189871868,13.94174156,150.3,150.25,13.94174156]
[1750189872363,13.94174156,150.29,150.25,13.94174156]
[1750189873746,13.94174156,150.29,150.23,26.0]
[1750189874150,13.94174156,150.29,150.25,13.94174156]
[1750189875244,13.94174156,150.3,150.26,13.94174156]
[1750189875441,13.94174156,150.32,150.28,13.94174156]
[1750189875646,13.94174156,150.31,150.27,13.94174156]
[1750189876268,13.94174156,150.32,150.27,13.94174156]
[1750189876498,20.46783428,150.34,150.29,13.94174156]
[1750189876649,4.96789272,150.37,150.33,13.94174156]
[1750189876849,21.72054392,150.39,150.3,13.94174156]
[1750189876850,4.96789272,150.38,150.34,13.94174156]
[1750189877172,13.94174156,150.38,150.3,13.94174156]
[1750189877354,18.90963428,150.38,150.3,13.94174156]
[1750189877554,13.94174156,150.38,150.3,13.94174156]
[1750189877750,6.63379272,150.39,150.31,18.933972]
[1750189877957,13.94174156,150.39,150.31,18.933972]
[1750189878159,13.94174156,150.38,150.31,18.933972]
[1750189879491,13.94174156,150.32,150.29,6.66]
[1750189879646,4.96789272,150.35,150.3,13.94174156]
[1750189879847,4.96789272,150.38,150.34,13.94174156]
[1750189880147,4.96789272,150.38,150.35,13.94174156]
[1750189880350,4.96789272,150.38,150.34,13.94174156]
[1750189880770,13.94174156,150.39,150.34,13.94174156]
[1750189880977,18.90963428,150.39,150.34,13.94174156]
[1750189881182,18.90963428,150.38,150.34,13.94174156]
[1750189881462,13.94174156,150.38,150.34,13.94174156]
[1750189881792,18.90963428,150.38,150.33,13.94174156]
[1750189881957,13.94174156,150.38,150.33,13.94174156]
[1750189882165,13.94174156,150.37,150.32,13.94174156]
[1750189882356,13.94174156,150.35,150.3,39.94174156]
[1750189882560,13.94174156,150.35,150.31,13.94174156]
[1750189882766,13.94174156,150.34,150.3,39.94174156]
[1750189882976,13.94174156,150.34,150.3,13.94174156]
[1750189883177,13.94174156,150.35,150.31,13.94174156]
[1750189883487,18.90180995,150.38,150.33,13.94174156]
[1750189883652,13.94174156,150.37,150.33,13.94174156]
[1750189883854,18.90180995,150.38,150.33,13.94174156]
[1750189884054,13.94174156,150.38,150.3,18.933972]
[1750189884363,26.0,150.41,150.32,13.94174156]
[1750189884364,13.94174156,150.37,150.32,13.94174156]
[1750189884669,13.94174156,150.36,150.32,13.94174156]
[1750189884854,18.90180995,150.37,150.33,13.94174156]
[1750189885058,13.94174156,150.37,150.33,13.94174156]
[1750189885357,4.96006839,150.37,150.32,13.94174156]
[1750189885570,4.96006839,150.37,150.29,35.14]
[1750189885571,13.94174156,150.37,150.33,13.94174156]
[1750189885776,4.96006839,150.39,150.36,13.94174156]
[1750189886104,13.94174156,150.4,150.36,13.94174156]
[1750189886397,18.90180995,150.4,150.36,13.94174156]
[1750189886558,13.94174156,150.4,150.36,13.94174156]
[1750189886881,18.90180995,150.41,150.37,13.94174156]
[1750189887053,4.96006839,150.41,150.37,13.94174156]
[1750189887485,18.90180995,150.41,150.37,13.94174156]
[1750189887686,18.90180995,150.41,150.36,13.94174156]
[1750189888501,6.48186839,150.42,150.36,13.94174156]
[1750189888662,13.94174156,150.41,150.36,13.94174156]
[1750189889076,6.47919166,150.42,150.36,13.94174156]
[1750189889358,13.94174156,150.41,150.36,13.94174156]
[1750189890188,13.94174156,150.4,150.32,0.28432314]
[1750189890377,13.94174156,150.37,150.32,39.94174156]
[1750189890581,13.94174156,150.37,150.32,13.94174156]
[1750189891395,6.64861521,150.41,150.31,13.94174156]
[1750189891396,13.94174156,150.36,150.31,13.94174156]
[1750189891568,4.95739166,150.39,150.29,6.66]
[1750189891569,13.94174156,150.32,150.29,6.66]
[1750189891891,13.94174156,150.3,150.26,13.94174156]
[1750189892590,11.60918291,150.34,150.24,6.66]
[1750189892591,13.94174156,150.28,150.24,6.66]
[1750189892768,13.94174156,150.28,150.24,20.60174156]
[1750189892962,13.94174156,150.29,150.24,20.60174156]
[1750189894093,4.95739166,150.31,150.25,13.94174156]
[1750189894283,13.94174156,150.29,150.25,13.94174156]
[1750189895871,13.94174156,150.31,150.26,13.94174156]
[1750189896184,13.94174156,150.31,150.24,6.66]
[1750189896385,13.94174156,150.31,150.26,13.94174156]
[1750189896782,13.94174156,150.31,150.27,13.94174156]
[1750189896991,13.94174156,150.3,150.26,13.94174156]
[1750189897374,13.94174156,150.3,150.25,13.94174156]
[1750189897576,18.89913322,150.33,150.28,13.94174156]
[1750189897790,13.94174156,150.33,150.28,13.94174156]
[1750189898280,13.94174156,150.33,150.24,6.66]
[1750189898281,13.94174156,150.34,150.3,13.94174156]
[1750189898480,6.64995176,150.38,150.33,13.94174156]
[1750189898695,4.95561849,150.37,150.33,13.94174156]
[1750189898884,4.95561849,150.37,150.27,0.28432314]
[1750189898885,4.95561849,150.37,150.34,13.94174156]
[1750189899082,7.6925,150.39,150.34,13.94174156]
[1750189899278,13.94174156,150.38,150.34,13.94174156]
[1750189899797,13.94174156,150.38,150.33,13.94174156]
[1750189900987,13.94174156,150.38,150.34,13.94174156]
[1750189901408,13.94174156,150.38,150.33,13.94174156]
[1750189902500,13.94174156,150.37,150.33,13.94174156]
[1750189902898,7.6925,150.39,150.33,13.94174156]
[1750189903099,13.94174156,150.34,150.31,6.54]
[1750189905203,13.94174156,150.33,150.31,6.54]
[1750189907614,13.94174156,150.32,150.28,13.94174156]
[1750189907911,6.65132442,150.35,150.28,13.94174156]
[1750189908095,13.94174156,150.32,150.28,13.94174156]
[1750189908405,6.65070497,150.36,150.28,13.94174156]
[1750189908609,4.95564806,150.35,150.28,13.94174156]
[1750189908908,4.95564806,150.37,150.34,13.94174156]
[1750189909092,4.95564806,150.38,150.35,13.94174156]
[1750189909800,1.6646,150.39,150.35,13.94174156]
[1750189909801,6.62024806,150.39,150.35,13.94174156]
[1750189910001,6.62024806,150.39,150.36,13.94174156]
[1750189910415,6.62024806,150.39,150.3,38.98699042]
[1750189910416,4.95564806,150.42,150.38,13.94174156]
[1750189910735,4.95564806,150.42,150.41,13.94174156]
[1750189910899,4.95564806,150.44,150.41,13.94174156]
[1750189911098,4.95564806,150.44,150.36,95.04]
[1750189911099,13.94174156,150.44,150.36,95.04]
[1750189911299,13.94174156,150.43,150.38,13.94174156]
[1750189911605,18.89738962,150.43,150.38,13.94174156]
[1750189911817,4.95564806,150.44,150.38,13.94174156]
[1750189912005,18.89738962,150.43,150.38,13.94174156]
[1750189912222,13.94174156,150.43,150.38,13.94174156]
[1750189912416,6.64805212,150.42,150.38,13.94174156]
[1750189912929,18.64964886,150.38,150.25,6.4944]
[1750189913102,13.94174156,150.35,150.3,13.94174156]
[1750189913432,4.95564806,150.37,150.34,13.94174156]
[1750189913603,4.9546144,150.38,150.34,13.94174156]
[1750189913927,18.89635596,150.38,150.33,13.94174156]
[1750189914131,13.94174156,150.38,150.33,13.94174156]
[1750189914348,13.94174156,150.38,150.32,26.0]
[1750189914496,13.94174156,150.37,150.32,26.0]
[1750189914695,20.59166776,150.38,150.32,26.0]
[1750189914928,25.54628216,150.38,150.32,26.0]
[1750189915133,13.94174156,150.37,150.32,13.94174156]
[1750189915319,6.6499262,150.38,150.31,13.94174156]
[1750189915320,13.94174156,150.36,150.31,13.94174156]
[1750189915502,13.94174156,150.36,150.29,6.54]
[1750189915698,13.94174156,150.3,150.21,6.2183]
[1750189916011,1.6386,150.33,150.28,13.94174156]
[1750189916232,1.6386,150.33,150.21,6.2183]
[1750189916233,13.94174156,150.29,150.21,6.2183]
[1750189916403,1.6386,150.33,150.21,6.2183]
[1750189916404,13.94174156,150.24,150.21,6.2183]
[1750189916722,13.94174156,150.24,150.2,20.48174156]
[1750189918744,6.65437677,150.28,150.21,13.94174156]
[1750189918945,13.94174156,150.25,150.21,13.94174156]
[1750189919118,13.94174156,150.25,150.2,20.48174156]
[1750189919318,13.94174156,150.24,150.2,20.48174156]
[1750189919714,13.94174156,150.22,150.2,6.54]
[1750189920127,13.94174156,150.22,150.17,13.94174156]
[1750189920355,13.94174156,150.18,150.15,6.54]
[1750189920515,13.94174156,150.2,150.16,13.94174156]
[1750189920715,4.95669419,150.25,150.19,13.94174156]
[1750189920926,13.94174156,150.24,150.16,44.64964886]
[1750189921217,13.94174156,150.23,150.19,13.94174156]
[1750189921448,4.95669419,150.28,150.21,13.94174156]
[1750189921740,13.94174156,150.27,150.23,13.94174156]
[1750189921939,1.6065,150.29,150.23,13.94174156]
[1750189922156,13.94174156,150.28,150.24,13.94174156]
[1750189922331,13.94174156,150.28,150.23,13.94174156]
[1750189922530,13.94174156,150.27,150.2,18.933972]
[1750189922735,13.94174156,150.27,150.23,13.94174156]
[1750189922943,4.95669419,150.3,150.24,13.94174156]
[1750189923122,4.95669419,150.3,150.2,18.933972]
[1750189923123,13.94174156,150.29,150.25,13.94174156]
[1750189923520,13.94174156,150.31,150.26,13.94174156]
[1750189923816,13.94174156,150.3,150.26,13.94174156]
[1750189924230,13.94174156,150.29,150.25,13.94174156]
[1750189924619,13.94174156,150.3,150.25,13.94174156]
[1750189925244,13.94174156,150.31,150.26,13.94174156]
[1750189925955,13.94174156,150.31,150.27,13.94174156]
[1750189926849,13.94174156,150.31,150.26,13.94174156]
[1750189927025,13.94174156,150.3,150.26,13.94174156]
[1750189927228,13.94174156,150.29,150.25,13.94174156]
[1750189927429,13.94174156,150.28,150.24,13.94174156]
[1750189928135,13.94174156,150.25,150.22,6.54]
[1750189928325,13.94174156,150.24,150.22,6.54]
[1750189928523,13.94174156,150.24,150.2,13.94174156]
[1750189928524,13.94174156,150.23,150.18,13.94174156]
[1750189928722,13.94174156,150.23,150.17,6.46]
[1750189928723,13.94174156,150.2,150.17,6.46]
[1750189928935,13.94174156,150.19,150.17,6.46]
[1750189929144,13.94174156,150.2,150.17,6.46]
[1750189929930,32.6533937,150.3,150.19,13.94174156]
[1750189930124,13.94174156,150.27,150.19,0.28432314]
[1750189930337,13.94174156,150.27,150.18,18.64964886]
[1750189930563,13.94174156,150.27,150.23,13.94174156]
[1750189930860,13.94174156,150.27,150.18,18.64964886]
[1750189930861,13.94174156,150.3,150.25,13.94174156]
[1750189931445,13.94174156,150.29,150.24,13.94174156]
[1750189931931,1.5127,150.31,150.25,13.94174156]
[1750189932133,13.94174156,150.29,150.25,13.94174156]
[1750189932333,13.94174156,150.28,150.22,26.0]
[1750189932666,13.94174156,150.29,150.24,13.94174156]
[1750189933461,8.16569703,150.31,150.18,28.8]
[1750189933462,13.94174156,150.26,150.18,28.8]
[1750189933625,13.94174156,150.25,150.19,26.0]
[1750189933821,13.94174156,150.26,150.19,26.0]
[1750189934070,13.94174156,150.26,150.22,13.94174156]
[1750189934655,13.94174156,150.26,150.21,13.94174156]
[1750189935150,13.94174156,150.24,150.2,13.94174156]
[1750189935339,13.94174156,150.25,150.2,13.94174156]
[1750189935541,13.94174156,150.25,150.21,13.94174156]
[1750189935752,6.93812578,150.29,150.19,13.94174156]
[1750189935753,13.94174156,150.24,150.19,13.94174156]
[1750189936144,13.94174156,150.23,150.19,13.94174156]
[1750189936751,13.94174156,150.21,150.17,20.40174156]
[1750189937233,13.94174156,150.2,150.17,6.46]
[1750189937440,6.0814,150.26,150.17,6.46]
[1750189937441,13.94174156,150.21,150.17,6.46]
[1750189937763,11.02641366,150.26,150.17,6.46]
[1750189937931,13.94174156,150.23,150.19,13.94174156]
[1750189938135,6.5624,150.3,150.18,18.64964886]
[1750189938355,6.5624,150.3,150.17,32.46]
[1750189938356,13.94174156,150.28,150.23,13.94174156]
[1750189938660,6.5624,150.3,150.23,13.94174156]
[1750189938661,13.21584443,150.3,150.23,13.94174156]
[1750189938830,1.5127,150.31,150.21,13.94174156]
[1750189939161,13.94174156,150.3,150.26,13.94174156]
[1750189939463,13.94174156,150.3,150.25,13.94174156]
[1750189939644,13.94174156,150.29,150.25,13.94174156]
[1750189940356,1.5127,150.31,150.26,13.94174156]
[1750189940557,13.94174156,150.31,150.26,13.94174156]
[1750189940966,13.94174156,150.3,150.26,13.94174156]
[1750189941462,13.94174156,150.3,150.25,13.94174156]
[1750189941664,13.94174156,150.29,150.24,20.72174156]
[1750189942052,6.65337061,150.3,150.24,6.78]
[1750189942548,13.94174156,150.28,150.24,6.78]
[1750189943244,13.94174156,150.27,150.24,6.78]
[1750189943446,6.65337061,150.3,150.24,6.78]
[1750189943653,13.94174156,150.27,150.24,6.78]
[1750189945031,13.94174156,150.26,150.24,6.78]
[1750189945247,13.94174156,150.25,150.24,6.78]
[1750189945559,13.94174156,150.27,150.24,6.78]
[1750189946161,4.94576647,150.31,150.26,13.94174156]
[1750189946345,13.94174156,150.31,150.27,13.94174156]
[1750189946544,6.5624,150.34,150.28,13.94174156]
[1750189946756,13.94174156,150.33,150.28,13.94174156]
[1750189946947,13.94174156,150.33,150.24,6.78]
[1750189946948,13.94174156,150.33,150.29,13.94174156]
[1750189947146,13.94174156,150.34,150.3,13.94174156]
[1750189947462,13.94174156,150.33,150.25,32.184]
[1750189947667,13.94174156,150.33,150.29,13.94174156]
[1750189947864,13.94174156,150.32,150.27,13.94174156]
[1750189948067,13.94174156,150.29,150.23,39.94174156]
[1750189948270,13.94174156,150.28,150.23,39.94174156]
[1750189948458,13.94174156,150.29,150.25,13.94174156]
[1750189948861,6.6521981,150.33,150.25,13.94174156]
[1750189949169,13.94174156,150.3,150.25,13.94174156]
[1750189949380,13.94174156,150.29,150.24,13.94174156]
[1750189949980,13.94174156,150.29,150.25,13.94174156]
[1750189950189,6.65203219,150.33,150.27,13.94174156]
[1750189950359,13.94174156,150.33,150.28,13.94174156]
[1750189950870,13.94174156,150.34,150.3,13.94174156]
[1750189951072,1.5329,150.35,150.29,13.94174156]
[1750189951073,13.94174156,150.33,150.29,13.94174156]
[1750189951371,13.94174156,150.3,150.25,46.72174156]
[1750189951670,13.94174156,150.29,150.25,20.72174156]
[1750189951860,6.65203219,150.33,150.25,20.72174156]
[1750189952057,13.94174156,150.29,150.25,20.72174156]
[1750189952252,13.94174156,150.3,150.25,20.72174156]
[1750189953153,13.94174156,150.29,150.25,20.72174156]
[1750189953771,6.65203219,150.33,150.25,6.78]
[1750189953979,13.94174156,150.3,150.25,6.78]
[1750189954191,13.94174156,150.32,150.27,13.94174156]
[1750189954483,13.94174156,150.32,150.28,13.94174156]
[1750189954856,1.5329,150.35,150.29,13.94174156]
[1750189955051,8.18404909,150.35,150.28,13.94174156]
[1750189955265,13.94174156,150.33,150.28,13.94174156]
[1750189955755,13.94174156,150.31,150.27,13.94174156]
[1750189956165,6.651622,150.34,150.27,13.94174156]
[1750189956374,11.59647106,150.36,150.29,13.94174156]
[1750189956572,11.59647106,150.36,150.25,6.78]
[1750189956573,13.94174156,150.33,150.28,13.94174156]
[1750189956773,4.94533956,150.34,150.27,13.94174156]
[1750189957078,13.94174156,150.31,150.27,13.94174156]
[1750189957276,13.94174156,150.31,150.24,44.64964886]
[1750189957576,13.94174156,150.25,150.17,20.72174156]